fUSD/lending_fUSD_20240708
["ID","MTS","AMOUNT","RATE_DAILY","PERIOD"]
[331471529,1720431043951,-561.4217349,0.00017237,2]
[331471531,1720431043962,-1639.09914,0.0001724,2]
[331471533,1720431043972,-1131.50192662,0.00017253,2]
[331471535,1720431043982,-760.802388,0.0001726,2]
[331471537,1720431043991,-170.1,0.00017299,2]
[331471538,1720431044003,-319.16,0.00017375,2]
[331471540,1720431044012,-167.0,0.00017399,2]
[331471543,1720431044022,-611.07,0.00017483,2]
[331471545,1720431044032,-150.0,0.00017555,2]
[331471546,1720431044042,-200.0,0.00017596,2]
[331471547,1720431044051,-350.0,0.00017618,2]
[331471548,1720431044060,-350.0,0.00017618,2]
[331471549,1720431044070,-838.084,0.0001767,2]
[331471550,1720431044079,-545.3132,0.000177,2]
[331471551,1720431044088,-350.0,0.00017706,2]
[331471552,1720431044097,-200.0,0.0001779,7]
[331471553,1720431044106,-200.0,0.0001779,7]
[331471554,1720431044116,-200.0,0.0001779,7]
[331471555,1720431044125,-200.0,0.0001779,7]
[331471556,1720431044134,-200.0,0.0001779,7]
[331471557,1720431044143,-200.0,0.0001779,7]
[331471558,1720431044152,-500.0,0.00017799,2]
[331471559,1720431044161,-278.645541,0.000178,2]
[331471560,1720431044171,-151.0,0.000178,2]
[331471561,1720431044180,-621738.744481,0.000178,3]
[331471562,1720431044189,-151.0,0.000178,2]
[331471563,1720431044198,-457.820244,0.000178,2]
[331471564,1720431044207,-457.820244,0.000178,2]
[331471565,1720431044217,-1639.09915,0.0001786,2]
[331471566,1720431044226,-200.0,0.0001789,7]
[331471567,1720431044236,-1300.0,0.000179,6]
[331471568,1720431044245,-455473.8885879,0.000179,3]
[331471569,1720431044288,-1377.53454,0.000179,3]
[331471570,1720431044298,-1047.40550235,0.000179,3]
[331471571,1720431044310,-8479.63585047,0.000179,3]
[331471572,1720431045534,-1326.22425809,0.000179,3]
[331471573,1720431045545,-4730.10899832,0.000179,3]
[331471574,1720431048186,-305.72325685,0.00014966,2]
[331471575,1720431048196,-906.51657302,0.00015379,2]
[331471576,1720431048205,-150.0,0.00017284,5]
[331471577,1720431048216,-131744.83716887,0.000179,3]
[331471578,1720431048225,-167.0,0.00017921,2]
[331471579,1720431048235,-153.5,0.00017935,2]
[331471580,1720431048244,-971.16776729,0.0001799,2]
[331471581,1720431048257,-371.79509922,0.00018,2]
[331471582,1720431048266,-294.1904902,0.00018,2]
[331471583,1720431048276,-155.30957869,0.00018,2]
[331471584,1720431048285,-1465.3095185,0.00018,2]
[331471585,1720431048294,-155.08647149,0.00018,2]
[331471586,1720431048303,-1000.0,0.00018,2]
[331471587,1720431048313,-2000.0,0.00018,2]
[331471588,1720431048323,-1116.54588124,0.00018,2]
[331471589,1720431048333,-10537.62745813,0.00018,2]
[331471590,1720431048342,-1163.75688752,0.00018,2]
[331471591,1720431048352,-760.802388,0.00018082,2]
[331471592,1720431048362,-1670.01152425,0.000181,2]
[331471593,1720431048371,-1000.0,0.00018158,2]
[331471594,1720431048381,-450.0,0.00018166,2]
[331471595,1720431048390,-169.60518932,0.00018166,2]
[331471596,1720431048399,-1296.88925501,0.00018222,2]
[331471597,1720431048409,-161.16502464,0.00018262,2]
[331471598,1720431048418,-995.04,0.0001827,2]
[331471599,1720431048428,-167.0,0.00018444,2]
[331471600,1720431048437,-235193.0,0.000185,2]
[331471601,1720431048447,-319.16,0.0001855,2]
[331471602,1720431048457,-151.0,0.000186,2]
[331471603,1720431048467,-457.820244,0.000186,2]
[331471604,1720431048477,-457.820244,0.000186,2]
[331471605,1720431048486,-550.0,0.00018714,2]
[331471606,1720431048496,-500.0,0.00018799,2]
[331471607,1720431048508,-151.0,0.000188,2]
[331471608,1720431048517,-151.0,0.000188,2]
[331471609,1720431048527,-154.658133,0.000188,2]
[331471610,1720431048535,-151.0,0.000188,2]
[331471611,1720431048546,-298.170977,0.000188,2]
[331471612,1720431048555,-151.0,0.000188,2]
[331471613,1720431048564,-298.170977,0.000188,2]
[331471614,1720431048573,-151.0,0.000188,2]
[331471615,1720431048583,-153.320665,0.000188,2]
[331471616,1720431048592,-151.0,0.000188,2]
[331471617,1720431048601,-8513.29888474,0.00018851,2]
[331471618,1720431048611,-525.76903209,0.00018864,2]
[331471619,1720431048620,-995.04,0.0001887,2]
[331471620,1720431048629,-505.0,0.00018893,2]
[331471621,1720431048638,-176.74868774,0.000189,2]
[331471622,1720431048648,-151.0,0.000189,2]
[331471623,1720431048658,-151.0,0.000189,2]
[331471624,1720431048667,-151.0,0.000189,2]
[331471625,1720431048676,-151.0,0.000189,2]
[331471626,1720431048685,-346.922656,0.000189,2]
[331471627,1720431048694,-151.0,0.000189,2]
[331471628,1720431048703,-346.922656,0.000189,2]
[331471629,1720431048713,-151.0,0.000189,2]
[331471630,1720431048722,-151.0,0.000189,2]
[331471631,1720431048731,-223.236403,0.000189,2]
[331471632,1720431048741,-151.0,0.000189,2]
[331471633,1720431048752,-151.0,0.000189,2]
[331471634,1720431048762,-151.0,0.000189,2]
[331471635,1720431048771,-151.0,0.000189,2]
[331471636,1720431048780,-550.41,0.000189,2]
[331471637,1720431048790,-550.41,0.000189,2]
[331471638,1720431048800,-550.41,0.000189,2]
[331471639,1720431048809,-550.41,0.000189,2]
[331471640,1720431048819,-550.41,0.000189,2]
[331471641,1720431048828,-550.41,0.000189,2]
[331471642,1720431048837,-550.41,0.000189,2]
[331471643,1720431048847,-550.41,0.000189,2]
[331471644,1720431048858,-550.41,0.000189,2]
[331471645,1720431048867,-550.41,0.000189,2]
[331471646,1720431048877,-550.41,0.000189,2]
[331471647,1720431048886,-550.41,0.000189,2]
[331471648,1720431048896,-550.41,0.000189,2]
[331471649,1720431048906,-550.41,0.000189,2]
[331471650,1720431048915,-550.41,0.000189,2]
[331471651,1720431048925,-550.41,0.000189,2]
[331471652,1720431048935,-550.41,0.000189,2]
[331471653,1720431048949,-550.41,0.000189,2]
[331471654,1720431048959,-550.41,0.000189,2]
[331471655,1720431048969,-550.41,0.000189,2]
[331471656,1720431048979,-550.41,0.000189,2]
[331471657,1720431048990,-550.41,0.000189,2]
[331471658,1720431048999,-550.41,0.000189,2]
[331471659,1720431049009,-550.41,0.000189,2]
[331471660,1720431049020,-550.41,0.000189,2]
[331471661,1720431049030,-550.41,0.000189,2]
[331471662,1720431049039,-550.41,0.000189,2]
[331471663,1720431049048,-550.41,0.000189,2]
[331471664,1720431049058,-550.41,0.000189,2]
[331471665,1720431049067,-550.41,0.000189,2]
[331471666,1720431049076,-550.41,0.000189,2]
[331471667,1720431049086,-550.41,0.000189,2]
[331471668,1720431049095,-550.41,0.000189,2]
[331471669,1720431049104,-550.41,0.000189,2]
[331471670,1720431049114,-550.41,0.000189,2]
[331471671,1720431049123,-550.41,0.000189,2]
[331471672,1720431049132,-550.41,0.000189,2]
[331471673,1720431049142,-550.41,0.000189,2]
[331471674,1720431049151,-550.41,0.000189,2]
[331471675,1720431049160,-550.41,0.000189,2]
[331471676,1720431049170,-550.41,0.000189,2]
[331471677,1720431049179,-550.41,0.000189,2]
[331471678,1720431049188,-550.41,0.000189,2]
[331471679,1720431049198,-550.41,0.000189,2]
[331471680,1720431049207,-550.41,0.000189,2]
[331471681,1720431049216,-550.41,0.000189,2]
[331471682,1720431049225,-550.41,0.000189,2]
[331471683,1720431049235,-550.41,0.000189,2]
[331471684,1720431049244,-550.41,0.000189,2]
[331471685,1720431049255,-550.41,0.000189,2]
[331471686,1720431049264,-550.41,0.000189,2]
[331471687,1720431049273,-550.41,0.000189,2]
[331471688,1720431049282,-550.41,0.000189,2]
[331471689,1720431049292,-550.41,0.000189,2]
[331471690,1720431049300,-550.41,0.000189,2]
[331471691,1720431049310,-244.56338,0.00018904,2]
[331471692,1720431049319,-244.56338,0.00018904,2]
[331471693,1720431049328,-151.0,0.00018904,2]
[331471694,1720431049337,-151.0,0.00018904,2]
[331471695,1720431049346,-151.0,0.00018904,2]
[331471696,1720431049355,-151.0,0.00018904,2]
[331471697,1720431049365,-760.802388,0.00018904,2]
[331471698,1720431049374,-550.41,0.00018926,2]
[331471699,1720431049383,-74565.76545088,0.00018936,2]
[331471700,1720431049396,-616.62914552,0.00018936,2]
[331471701,1720431049406,-550.41,0.00018936,2]
[331471702,1720431049415,-550.41,0.00018936,2]
[331471703,1720431049425,-151.91714668,0.00018946,2]
[331471704,1720431051054,-24226.68628108,0.00018946,2]
[331471705,1720431051068,-65734.3395,0.00018946,2]
[331471706,1720431051083,-12869.00238687,0.00018946,2]
[331471707,1720431051092,-151.0,0.00018946,2]
[331471708,1720431051101,-151.0,0.00018946,2]
[331471709,1720431051111,-151.0,0.00018946,2]
[331471710,1720431051120,-151.0,0.00018946,2]
[331471711,1720431051130,-151.0,0.00018946,2]
[331471712,1720431051139,-151.0,0.00018946,2]
[331471713,1720431051149,-550.41,0.0001899,2]
[331471714,1720431051159,-550.41,0.0001899,2]
[331471715,1720431051168,-550.41,0.0001899,2]
[331471716,1720431051178,-550.41,0.0001899,2]
[331471717,1720431051187,-155.19169823,0.00019,2]
[331471718,1720431051196,-5000.0,0.00019,2]
[331471719,1720431051205,-155.25540941,0.00019,2]
[331471720,1720431051214,-186.01944568,0.00019,2]
[331471721,1720431051222,-1000.0,0.00019,2]
[331471722,1720431051231,-2000.0,0.00019,2]
[331471723,1720431051240,-1012.30781653,0.00019,2]
[331471724,1720431051249,-1515.995039,0.00019,2]
[331471725,1720431051261,-364.0900299,0.00019,2]
[331471726,1720431051392,-940.63593061,0.00019,2]
[331471727,1720431051404,-56408.95060526,0.00019,2]
[331471728,1720431051415,-1509.72176309,0.00019,2]
[331471729,1720431051427,-1969.79604738,0.00019,2]
[331471730,1720431051436,-151.0,0.00019,2]
[331471731,1720431051445,-151.0,0.00019,2]
[331471732,1720431051454,-2826.2798371,0.00019,2]
[331471743,1720431235757,1234.57476027,9e-05,2]
[331471746,1720431279141,150.0,9e-05,2]
[331471747,1720431279165,150.0,9e-05,2]
[331471748,1720431279191,150.0,9e-05,2]
[331471749,1720431279217,150.0,9e-05,2]
[331471750,1720431279241,150.0,9e-05,2]
[331471751,1720431279266,150.0,9e-05,2]
[331471752,1720431279290,150.0,9e-05,2]
[331471753,1720431279314,150.0,9e-05,2]
[331471754,1720431279337,150.0,9e-05,2]
[331471755,1720431279362,150.0,9e-05,2]
[331471756,1720431279386,254.28587484,9e-05,2]
[331471757,1720431279413,5802.66167362,9e-05,2]
[331471758,1720431281133,10064.16428142,9e-05,2]
[331471759,1720431293262,600.0,0.00010909,2]
[331471760,1720431306339,1264.32195748,0.00010909,2]
[331471761,1720431334568,333.71499793,0.00010909,2]
[331471763,1720431345896,5618.14742634,0.000112,2]
[331471765,1720431367990,-1549.0,0.000118,2]
[331471768,1720431387498,-1799.0,0.000118,2]
[331471769,1720431387648,7556.94754846,0.00010909,2]
[331471770,1720431397115,422140.93082899,0.00010909,2]
[331471772,1720431407274,-441.5623675,0.000118,2]
[331471773,1720431407286,-808.875265,0.000118,2]
[331471774,1720431407297,-441.5623675,0.00013223,2]
[331471776,1720431441373,-883.0,0.00012997,2]
[331471778,1720431546457,35603.36425902,0.00011199,2]
[331471782,1720431612694,7556.94754846,0.00011199,2]
[331471784,1720431716801,7556.94754846,0.00011199,2]
[331471786,1720431801677,2783.99393382,0.00011199,2]
[331471787,1720431919762,955.85753929,0.00011199,2]
[331471788,1720431954370,35595.7422346,0.00011199,2]
[331471790,1720432084664,-539.54,0.00011754,2]
[331471791,1720432084688,-150.0,0.000126,2]
[331471792,1720432084710,-500.0,0.000126,2]
[331471793,1720432084734,-2910.46,0.00012717,2]
[331471797,1720432142365,9245.81170707,0.00011199,2]
[331471815,1720432202896,150.0,0.00011199,2]
[331471816,1720432203000,150.0,0.00011199,2]
[331471817,1720432203196,150.0,0.00011199,2]
[331471818,1720432203406,150.0,0.00011199,2]
[331471819,1720432203621,150.0,0.00011199,2]
[331471820,1720432230149,20333.13603751,0.00011199,2]
[331471846,1720432232980,-163.88072823,0.00012314,2]
[331471847,1720432232989,-292.28971368,0.00012314,2]
[331471848,1720432232998,-342.7,0.00012596,2]
[331471849,1720432233008,-2465.9204696,0.00012599,2]
[331471850,1720432233020,-274.1137224,0.00012599,2]
[331471851,1720432233029,-250.0,0.00012663,2]
[331471852,1720432233039,-300.0,0.00012716,2]
[331471853,1720432233048,-5510.78287266,0.00012717,2]
[331471854,1720432233060,-2450.105426,0.00012717,2]
[331471855,1720432233071,-5710.98748693,0.00012717,2]
[331471856,1720432233197,-505.95034743,0.00012717,2]
[331471857,1720432233209,-2121.37763752,0.00012717,2]
[331471858,1720432233220,-466.63551131,0.00012717,2]
[331471859,1720432233231,-3172.60248449,0.00012717,2]
[331471860,1720432233242,-603.50047571,0.00012717,2]
[331471861,1720432233258,-427.59775795,0.00012717,2]
[331471862,1720432233267,-250.0,0.00012829,2]
[331471863,1720432233276,-153.5,0.00012834,2]
[331471864,1720432233285,-250.18750236,0.000129,2]
[331471865,1720432233295,-1000.0,0.00012978,2]
[331471866,1720432233304,-1555.84719492,0.00012996,2]
[331471878,1720432238518,-3494.15280508,0.00012996,2]
[331471879,1720432238527,-85689.07121333,0.00012997,2]
[331471880,1720432238538,-299.99,0.00012997,2]
[331471881,1720432238547,-152.35,0.00013078,2]
[331471882,1720432238556,-170.1,0.00013105,2]
[331471883,1720432238567,-155.1077282,0.00013128,2]
[331471884,1720432238576,-150.0,0.00013151,2]
[331471885,1720432238586,-200.0,0.00013189,2]
[331471886,1720432238596,-201.1,0.00013189,2]
[331471887,1720432238606,-685.14451651,0.00013223,2]
[331471888,1720432238616,-178.44,0.00013445,2]
[331471889,1720432238625,-24728.49438693,0.00013472,2]
[331471890,1720432238635,-24728.49438693,0.00013472,2]
[331471891,1720432238643,-154.19,0.00013508,2]
[331471892,1720432238653,-492.43198125,0.00013516,2]
[331471893,1720432238663,-346.68469279,0.00013516,2]
[331471894,1720432238672,-155.0,0.00013574,2]
[331471895,1720432238681,-450.2,0.00013575,2]
[331471896,1720432238691,-499.99,0.00013575,2]
[331471897,1720432238700,-10418.44583803,0.0001358,2]
[331471898,1720432238710,-18369.0,0.00013584,2]
[331471900,1720432238719,-305.55234041,0.0001369,2]
[331471902,1720432238728,-28580.1942,0.0001369,2]
[331471904,1720432238737,-250.0,0.00013699,2]
[331471905,1720432238746,-398.79,0.00013699,2]
[331471907,1720432238756,-1919.67,0.00013699,2]
[331471909,1720432238766,-1797.8025,0.0001376,2]
[331471911,1720432238775,-214408.13798811,0.0001379,2]
[331471913,1720432238785,-62597.77328247,0.0001379,2]
[331471915,1720432238795,-8525.96807053,0.00013799,2]
[331471924,1720432238866,-597.4,0.00013799,2]
[331471954,1720432239161,-575.48925,0.00013799,2]
[331471956,1720432239174,-275.58000008,0.00013799,2]
[331471958,1720432239187,-42653.23889687,0.00013799,2]
[331471960,1720432239198,-10483.9861,0.000139,2]
[331471962,1720432239209,-4561.77500315,0.000139,2]
[331471964,1720432239222,-614.32,0.000139,2]
[331472125,1720432241897,-449.03088406,0.00013516,2]
[331472126,1720432241912,-1.29439691,0.00013516,2]
[331472127,1720432241926,-17269.59969685,0.000139,2]
[331472128,1720432241940,-1941.09001082,0.000139,2]
[331472129,1720432242121,-1405.66155738,0.000139,2]
[331472130,1720432242137,-4153.2484318,0.000139,2]
[331472131,1720432242149,-191.46738629,0.000139,2]
[331472132,1720432242159,-5675.53258984,0.000139,2]
[331472133,1720432242169,-174.36,0.0001398,2]
[331472134,1720432242180,-2250.53438901,0.0001399,2]
[331472135,1720432242190,-1000.0,0.00013998,2]
[331472136,1720432242200,-28042.73894807,0.00013999,2]
[331472137,1720432242212,-184172.73392605,0.00014,2]
[331472138,1720432242227,-33882.6825563,0.00014,2]
[331472153,1720432242491,-768.95049403,0.00014,2]
[331472250,1720432246028,-711.82512358,0.00014,2]
[331472256,1720432246220,-788539.74642959,0.00014,2]
[331472272,1720432247775,-786.25,0.00013105,2]
[331472273,1720432247786,-5877.48859263,0.00013105,2]
[331472274,1720432247824,-2711.07927829,0.00013105,2]
[331472275,1720432248095,-1651.07245401,0.00013105,2]
[331472276,1720432248112,-1477.27432903,0.00013105,2]
[331472277,1720432248142,-590.82,0.00013105,2]
[331472278,1720432248154,-577.129655,0.00013105,2]
[331472279,1720432248169,-999.49999934,0.00013105,2]
[331472280,1720432248180,-312.78003432,0.00013105,2]
[331472281,1720432248192,-5597.13275634,0.00013105,2]
[331472282,1720432248204,-1654.82640558,0.00013105,2]
[331472283,1720432248213,-2372.59120727,0.00014,2]
[331472284,1720432248226,-5770.89999999,0.00014,2]
[331472285,1720432248659,-5724.6,0.00014,2]
[331472286,1720432249698,7556.18852005,0.00011199,2]
[331472288,1720432330316,7264.96591251,0.00011199,2]
[331472289,1720432466616,7017.16597303,0.00011199,2]
[331472291,1720432479904,35603.36425902,0.00011199,2]
[331472292,1720432480355,15436.64259195,0.00011199,2]
[331472308,1720432608907,35603.36425902,0.00011199,2]
[331472312,1720432669106,7837.02459806,0.00011199,2]
[331472313,1720432713383,9245.81170707,0.00011199,2]
[331472314,1720432729181,10000.0,0.00011199,2]
[331472315,1720432729205,10000.0,0.00011199,2]
[331472316,1720432729227,10000.0,0.00011199,2]
[331472317,1720432729248,10000.0,0.00011199,2]
[331472318,1720432729271,10000.0,0.00011199,2]
[331472319,1720432729293,10000.0,0.00011199,2]
[331472320,1720432729315,10000.0,0.00011199,2]
[331472321,1720432729336,10000.0,0.00011199,2]
[331472322,1720432729359,10000.0,0.00011199,2]
[331472323,1720432729383,173253.37632965,0.00011199,2]
[331472324,1720432741438,35603.36425902,0.00011199,2]
[331472325,1720432756786,43167.20507123,0.00011199,2]
[331472326,1720432804484,28042.73894807,0.00011199,2]
[331472327,1720432806740,24728.49438693,0.00011199,2]
[331472328,1720432824362,19635.66998029,0.00011199,2]
[331472329,1720432830502,155.0,0.00011199,2]
[331472330,1720432834472,28042.73894807,0.00011199,2]
[331472331,1720432900683,32960.65221479,0.00011199,2]
[331472332,1720432914965,9245.81170707,0.00011199,2]
[331472333,1720432924995,4208.20140294,0.00011199,2]
[331472334,1720432945165,9245.81170707,0.00011199,2]
[331472335,1720432947298,492.43198125,0.00011199,2]
[331472336,1720432976343,1394.7328968,0.00011199,2]
[331472337,1720432985037,24728.49438693,0.00011199,2]
[331472338,1720433025493,28042.73894807,0.00011199,2]
[331472339,1720433029616,685.29662423,0.00011199,2]
[331472340,1720433055429,155.1077282,0.00011199,2]
[331472341,1720433061580,315.97768332,0.00011199,2]
[331472342,1720433077685,431.12060061,0.00011199,2]
[331472343,1720433083526,632.47,0.00010261,2]
[331472344,1720433117407,20332.63818252,0.00011199,2]
[331472345,1720433119645,414.39123956,0.00011199,2]
[331472346,1720433122559,67636.19061318,0.00011199,2]
[331472347,1720433134763,24728.49438693,0.00011199,2]
[331472348,1720433136423,254.34908601,0.00011199,2]
[331472349,1720433137062,8004.67140727,0.00011199,2]
[331472350,1720433176530,18942.67724607,0.00011199,2]
[331472351,1720433188259,1071.01746331,0.00011199,2]
[331472352,1720433193837,1041.44285239,0.00011199,2]
[331472353,1720433211331,313.95040428,0.00011199,2]
[331472354,1720433232917,1055.71054162,0.00011199,2]
[331472355,1720433236962,2363.80938682,0.00011199,2]
[331472356,1720433239718,1014.32314146,0.00011199,2]
[331472358,1720433263726,204.75806513,0.00011199,2]
[331472360,1720433290688,5603.41953432,0.00011199,2]
[331472361,1720433295752,24728.49438693,0.00011199,2]
[331472362,1720433300383,19635.66998029,0.00011199,2]
[331472382,1720433411806,774.14889549,0.00011199,2]
[331472383,1720433425696,155.0,0.00011199,2]
[331472386,1720433432595,-1085.42033485,0.00012092,2]
[331472387,1720433432610,-4228.0863352,0.00012092,2]
[331472391,1720433433426,-2138.35067457,0.00012092,2]
[331472392,1720433433438,-4440.88834438,0.00012092,2]
[331472393,1720433433447,-170.38,0.00012153,2]
[331472394,1720433433457,-301.72706377,0.0001216,2]
[331472395,1720433433466,-500.0,0.00012178,2]
[331472396,1720433433476,-672.4,0.00012208,2]
[331472397,1720433433486,-250.0,0.00012218,2]
[331472398,1720433433497,-2537.72,0.00012231,2]
[331472399,1720433433506,-500.0,0.0001224,2]
[331472400,1720433433515,-315.97768332,0.00012302,2]
[331472401,1720433433525,-155.0,0.00012302,2]
[331472402,1720433433534,-527.41897284,0.00012302,2]
[331472403,1720433433554,-23900.0,0.00012315,2]
[331472404,1720433433565,-450.2,0.0001232,2]
[331472405,1720433433575,-4549.56887807,0.00012324,2]
[331472406,1720433433585,-800.0,0.00012324,2]
[331472407,1720433433595,-200.0,0.00012332,2]
[331472408,1720433433605,-2127.43,0.00012334,2]
[331472409,1720433433614,-150.0,0.00012358,2]
[331472410,1720433433624,-170.1,0.00012358,2]
[331472411,1720433433633,-34976.88,0.00012358,2]
[331472412,1720433433643,-499.99,0.00012358,2]
[331472413,1720433433653,-250.0,0.00012373,2]
[331472414,1720433433662,-299.99,0.00012373,2]
[331472415,1720433433672,-632.47,0.00012525,2]
[331472416,1720433433681,-150.0,0.000126,2]
[331472417,1720433433690,-191.74,0.00012678,2]
[331472418,1720433433700,-158.93,0.00012717,2]
[331472419,1720433433709,-178.44,0.00012723,2]
[331472420,1720433433718,-154.75,0.00012747,2]
[331472421,1720433433729,-154.75,0.0001283,2]
[331472422,1720433433739,-154.75,0.00012913,2]
[331472423,1720433433750,-154.75,0.00012996,2]
[331472424,1720433433759,-154.75,0.00013079,2]
[331472425,1720433433768,-5603.41953432,0.00013128,2]
[331472426,1720433433778,-254.10536199,0.00013128,2]
[331472427,1720433433787,-154.75,0.00013162,2]
[331472428,1720433433797,-30276.0,0.00013219,2]
[331472429,1720433433806,-154.75,0.00013245,2]
[331472430,1720433433817,-154.75,0.00013328,2]
[331472431,1720433433827,-154.75,0.00013411,2]
[331472432,1720433433836,-3376.58664449,0.00013472,2]
[331472433,1720433433845,-1055.71054162,0.00013472,2]
[331472434,1720433433855,-1358.01569675,0.00013472,2]
[331472435,1720433433865,-433.7048666,0.00013472,2]
[331472436,1720433433875,-1014.32314146,0.00013472,2]
[331472437,1720433433885,-1797.8025,0.00013474,2]
[331472438,1720433433894,-6739.3533,0.00013502,2]
[331472439,1720433433905,-385.62090767,0.00013516,2]
[331472440,1720433433915,-200.0,0.00013541,2]
[331472441,1720433433924,-400.0,0.00013543,2]
[331472442,1720433433934,-400.0,0.00013543,2]
[331472443,1720433433944,-155.0,0.00013543,2]
[331472444,1720433433953,-366.80671841,0.00013543,2]
[331472445,1720433433963,-20000.0,0.00013574,2]
[331472446,1720433433972,-4092.05383887,0.00013574,2]
[331472447,1720433433981,-251.89538666,0.00013574,2]
[331472448,1720433433990,-168.81,0.00013602,2]
[331472449,1720433434000,-173.03,0.00013611,2]
[331472450,1720433434010,-500.0,0.0001369,2]
[331472451,1720433434020,-1213.69684516,0.0001369,2]
[331472452,1720433434030,-2751.0,0.00013699,2]
[331472453,1720433434039,-200.0,0.00013699,2]
[331472454,1720433434049,-2593.78,0.00013699,2]
[331472455,1720433434058,-1410.23,0.00013699,2]
[331472456,1720433434067,-250.0,0.00013699,2]
[331472457,1720433434077,-1919.67,0.00013699,2]
[331472458,1720433434086,-281.1116,0.00013699,2]
[331472459,1720433434096,-2500.0,0.000137,2]
[331472460,1720433434105,-200.33994697,0.00013736,4]
[331472461,1720433434115,-155.0,0.00013736,2]
[331472462,1720433434124,-155.3679551,0.00013759,2]
[331472463,1720433434134,-155.3679551,0.00013759,2]
[331472464,1720433434143,-209.39464551,0.00013759,2]
[331472465,1720433434153,-62597.77328247,0.0001379,2]
[331472466,1720433434162,-48217.50540283,0.00013799,2]
[331472467,1720433434172,-182.63010068,0.000138,2]
[331472468,1720433434182,-19719.4446,0.000138,2]
[331472469,1720433434191,-173.76636118,0.000138,2]
[331472470,1720433434200,-306.21444093,0.000138,2]
[331472471,1720433434210,-264.7511771,0.00013802,2]
[331472472,1720433434219,-205.50625995,0.00013802,2]
[331472473,1720433434228,-815.45312623,0.00013849,2]
[331472474,1720433434238,-800.0,0.00013865,2]
[331472475,1720433434249,-385.08664704,0.00013872,2]
[331472476,1720433434258,-227.24934482,0.00013889,2]
[331472477,1720433434267,-1213.69684516,0.00013897,2]
[331472478,1720433434275,-155.80521738,0.00013899,2]
[331472479,1720433434285,-157.24300534,0.00013899,2]
[331472480,1720433434295,-311.52885108,0.00013899,2]
[331472481,1720433434304,-1000.0,0.000139,2]
[331472482,1720433434314,-24065.6729,0.000139,2]
[331472483,1720433434323,-179.04972536,0.000139,2]
[331472484,1720433434332,-100000.0,0.000139,2]
[331472485,1720433434342,-873.8773,0.000139,2]
[331472486,1720433434351,-29441.42872567,0.000139,2]
[331472487,1720433434364,-700.0,0.000139,2]
[331472488,1720433434376,-38649.51337433,0.000139,2]
[331472489,1720433434385,-1000.0,0.000139,2]
[331472490,1720433434394,-8185.6057,0.000139,2]
[331472491,1720433434404,-182.63010067,0.000139,2]
[331472492,1720433434413,-161.56209817,0.000139,2]
[331472493,1720433434422,-246.57607614,0.000139,2]
[331472494,1720433434432,-7500.0,0.000139,2]
[331472495,1720433434441,-604.34438202,0.000139,2]
[331472496,1720433434451,-191.46738629,0.000139,2]
[331472497,1720433434460,-3783.68839322,0.000139,2]
[331472498,1720433434470,-186.40907942,0.00013987,2]
[331472499,1720433434479,-303.74358298,0.00013989,2]
[331472500,1720433434489,-346.68469279,0.00013989,2]
[331472501,1720433434501,-218.26308981,0.00013989,2]
[331472502,1720433434510,-186.40907942,0.0001399,2]
[331472503,1720433434519,-186.40907942,0.0001399,2]